bitfinex/quotes_BTCUSD_20250714
["timestamp","ask_amount","ask_price","bid_price","bid_amount"]
[1752510102814,0.17290469,119380.0,119370.0,0.08510759]
[1752510102815,0.1394,119380.0,119370.0,0.08510759]
[1752510103030,0.12935194,119380.0,119370.0,0.08510759]
[1752510103267,0.13928,119380.0,119370.0,0.13630944]
[1752510103483,0.13924,119380.0,119370.0,0.16790944]
[1752510103702,0.13924,119380.0,119370.0,0.1668547]
[1752510103957,0.13924,119380.0,119370.0,0.1352547]
[1752510104170,0.13924,119380.0,119370.0,0.13630944]
[1752510104616,0.14761612,119380.0,119370.0,0.13630944]
[1752510104843,0.15599231,119380.0,119370.0,0.13630944]
[1752510105269,0.14757612,119380.0,119370.0,0.13630944]
[1752510105481,0.15595238,119380.0,119370.0,0.16940944]
[1752510105691,0.14757612,119380.0,119370.0,0.1683547]
[1752510105902,0.14757612,119380.0,119370.0,0.1352547]
[1752510106122,0.14757612,119380.0,119370.0,0.13630944]
[1752510107006,0.1392,119380.0,119370.0,0.13630944]
[1752510107227,0.1392,119380.0,119370.0,0.31223289]
[1752510107455,0.13892,119380.0,119370.0,0.1352547]
[1752510107668,0.13892,119380.0,119370.0,0.16848868]
[1752510107902,0.35071643,119390.0,119370.0,0.16743394]
[1752510108110,0.17482222,119390.0,119370.0,0.16743394]
[1752510108340,0.00837598,119380.0,119370.0,0.08655635]
[1752510108565,0.0188521,119380.0,119370.0,0.09919047]
[1752510108798,0.01047598,119380.0,119370.0,0.09919047]
[1752510109048,0.04398102,119380.0,119370.0,0.09819047]
[1752510109587,0.03560504,119380.0,119370.0,0.10024521]
[1752510109801,0.03560504,119380.0,119370.0,0.09924521]
[1752510110017,0.03560504,119380.0,119370.0,0.10024521]
[1752510110233,0.20313728,119380.0,119370.0,0.10024521]
[1752510110456,0.20313728,119380.0,119370.0,0.01784336]
[1752510110680,0.04398158,119380.0,119370.0,0.01784336]
[1752510110912,0.02722892,119380.0,119370.0,0.01784336]
[1752510111340,0.01885245,119380.0,119370.0,0.02087336]
[1752510111584,0.02722885,119380.0,119370.0,0.02087336]
[1752510112020,0.02722885,119380.0,119370.0,0.00520924]
[1752510112261,0.03033885,119380.0,119370.0,0.01666833]
[1752510112500,0.7540061,119380.0,119370.0,0.01666833]
[1752510112733,0.78278841,119380.0,119370.0,0.01666872]
[1752510112962,0.77231201,119380.0,119370.0,0.01666872]
[1752510113238,0.78807691,119380.0,119370.0,0.01666872]
[1752510113454,0.78203051,119380.0,119370.0,0.01666872]
[1752510113891,0.64355051,119380.0,119370.0,0.01666872]
[1752510114171,0.78187051,119380.0,119370.0,0.01666872]
[1752510114384,0.62446736,119380.0,119370.0,0.01666872]
[1752510114616,0.74810023,119380.0,119370.0,0.01666872]
[1752510114866,0.0024,119390.0,119370.0,0.75972789]
[1752510115095,0.01077548,119390.0,119370.0,0.22872695]
[1752510115338,0.01915075,119390.0,119380.0,0.00303]
[1752510115553,0.0024,119390.0,119380.0,0.16504583]
[1752510116016,0.19504466,119390.0,119380.0,0.16504583]
[1752510116271,0.19504466,119390.0,119380.0,0.66504583]
[1752510116501,0.1950453,119390.0,119380.0,0.66504583]
[1752510116716,0.18666982,119390.0,119380.0,0.02079872]
[1752510118093,0.18666982,119390.0,119380.0,0.02179872]
[1752510118520,0.60218283,119390.0,119380.0,0.01666872]
[1752510118738,0.60218283,119390.0,119380.0,0.01766872]
[1752510119610,0.59380713,119390.0,119380.0,0.01766872]
[1752510119823,0.01077548,119390.0,119380.0,0.02291872]
[1752510120056,0.01915075,119390.0,119380.0,0.08431872]
[1752510120274,0.17370229,119390.0,119380.0,0.08431872]
[1752510120508,0.34122114,119390.0,119380.0,0.08431872]
[1752510120742,0.32446996,119390.0,119380.0,0.02091872]
[1752510120958,0.32446996,119390.0,119380.0,0.02091909]
[1752510121170,0.32446996,119390.0,119380.0,0.01776909]
[1752510121171,0.70988297,119390.0,119380.0,0.01776909]
[1752510121395,0.70988297,119390.0,119380.0,0.01566909]
[1752510121829,0.73988297,119390.0,119380.0,0.01566909]
[1752510122276,0.70988297,119390.0,119380.0,0.01566909]
[1752510122497,0.32644996,119390.0,119380.0,0.02090909]
[1752510122795,0.32430996,119390.0,119380.0,0.02090909]
[1752510123246,0.32430996,119390.0,119380.0,0.02091114]
[1752510123680,0.32628996,119390.0,119380.0,0.02091114]
[1752510123902,0.32628996,119390.0,119380.0,0.01776114]
[1752510124119,0.70972297,119390.0,119380.0,0.01776114]
[1752510124350,0.32628996,119390.0,119380.0,0.02091114]
[1752510124603,0.32430996,119390.0,119380.0,0.02091114]
[1752510124814,0.32426996,119390.0,119380.0,0.02091114]
[1752510125268,0.01915147,119390.0,119380.0,0.02091114]
[1752510125493,0.19504559,119390.0,119380.0,0.02091114]
[1752510125716,0.33248559,119390.0,119380.0,0.02091114]
[1752510125954,0.18666996,119390.0,119380.0,0.02091114]
[1752510126170,0.32426996,119390.0,119380.0,0.02091114]
[1752510126620,0.70130713,119390.0,119380.0,0.01776114]
[1752510126836,0.73250713,119390.0,119380.0,0.01567114]
[1752510127060,0.18027412,119390.0,119380.0,0.01776114]
[1752510127278,0.31585412,119390.0,119380.0,0.02091114]
[1752510128163,0.17829412,119390.0,119380.0,0.02091114]
[1752510128383,0.69920713,119390.0,119380.0,0.02091114]
[1752510128597,0.70119713,119390.0,119380.0,0.01776114]
[1752510129025,0.31776412,119390.0,119380.0,0.11776114]
[1752510129243,0.70119713,119390.0,119380.0,0.11777075]
[1752510129955,0.70119713,119390.0,119380.0,0.11568075]
[1752510130174,0.76419713,119390.0,119380.0,0.11568075]
[1752510130389,0.73139713,119390.0,119380.0,0.11568075]
[1752510130622,0.72302122,119390.0,119380.0,0.11568075]
[1752510130839,0.30922821,119390.0,119380.0,0.11568075]
[1752510131058,0.69266122,119390.0,119380.0,0.11568075]
[1752510131488,0.69266122,119390.0,119380.0,0.11777075]
[1752510131951,0.17829405,119390.0,119380.0,0.12092075]
[1752510132166,0.01915133,119390.0,119380.0,0.18412075]
[1752510132395,0.01077534,119390.0,119380.0,0.18412075]
[1752510132622,0.02351433,119400.0,119390.0,0.07157584]
[1752510132842,0.13748,119400.0,119390.0,0.23223285]
[1752510133075,0.13748,119400.0,119390.0,0.23117898]
[1752510133299,0.32173409,119400.0,119390.0,0.23117898]
[1752510133573,0.32173409,119400.0,119390.0,0.10226786]
[1752510133574,0.69679225,119400.0,119390.0,0.10226786]
[1752510133791,0.33995164,119400.0,119390.0,0.60226786]
[1752510134006,0.725365,119400.0,119390.0,0.60226786]
[1752510134221,0.756465,119400.0,119390.0,0.01568075]
[1752510134453,0.789485,119400.0,119390.0,0.01568075]
[1752510134899,0.789485,119400.0,119390.0,0.01668075]
[1752510135113,1.17291801,119400.0,119390.0,0.01668075]
[1752510135754,1.17291801,119400.0,119390.0,0.01568075]
[1752510136605,1.17491801,119400.0,119390.0,0.01568075]
[1752510137930,0.17589398,119390.0,119380.0,0.1]
[1752510138159,0.56131699,119390.0,119380.0,0.11568707]
[1752510138370,0.56131699,119390.0,119380.0,0.11568691]
[1752510139006,0.18426968,119390.0,119380.0,0.18382691]
[1752510139217,0.56770269,119390.0,119380.0,0.12092691]
[1752510139434,0.56770269,119390.0,119380.0,0.23362832]
[1752510139649,0.70458269,119390.0,119380.0,0.23257402]
[1752510140340,0.70458269,119390.0,119380.0,0.20227402]
[1752510140765,0.56770269,119390.0,119380.0,0.20227402]
[1752510140982,0.70458269,119390.0,119380.0,0.20227402]
[1752510141215,0.40018448,119390.0,119380.0,0.20227402]
[1752510141433,0.16196695,119390.0,119380.0,0.23227402]
[1752510141649,0.16196695,119390.0,119380.0,0.26557402]
[1752510141650,0.00837527,119390.0,119380.0,0.26557402]
[1752510141861,0.1368,119390.0,119380.0,1.29574802]
[1752510142108,0.14517527,119390.0,119380.0,0.94560002]
[1752510142330,0.15355075,119390.0,119380.0,0.53690102]
[1752510142547,0.17030194,119390.0,119380.0,0.26557402]
[1752510142759,0.16025356,119390.0,119380.0,0.26657402]
[1752510142973,0.17700467,119390.0,119380.0,0.26657402]
[1752510143185,0.14517534,119390.0,119380.0,0.26657402]
[1752510143406,0.1368,119390.0,119380.0,0.26657402]
[1752510143624,0.53698376,119390.0,119380.0,0.23327402]
[1752510143835,0.52860828,119390.0,119380.0,0.20327402]
[1752510144058,0.53698369,119390.0,119380.0,0.20327402]
[1752510144276,0.54535932,119390.0,119380.0,0.20327402]
[1752510144492,0.53698369,119390.0,119380.0,0.20327402]
[1752510144934,0.54535925,119390.0,119380.0,0.20327402]
[1752510145189,0.52023301,119390.0,119380.0,0.20327402]
[1752510145414,0.15355104,119390.0,119380.0,0.20327474]
[1752510145840,0.16192681,119390.0,119380.0,0.20327474]
[1752510146288,0.32944502,119390.0,119380.0,0.20327474]
[1752510146550,0.71287803,119390.0,119380.0,0.20327474]
[1752510146778,0.71485803,119390.0,119380.0,0.10309]
[1752510147003,0.55571573,119390.0,119380.0,0.11668809]
[1752510147239,0.5453596,119390.0,119380.0,0.12192809]
[1752510147444,0.41693537,119390.0,119380.0,0.12192811]
[1752510147662,0.72962949,119390.0,119380.0,0.12092811]
[1752510147867,0.72125408,119390.0,119380.0,0.12192811]
[1752510148083,0.02512645,119390.0,119380.0,0.20327522]
[1752510148293,0.33782057,119390.0,119380.0,0.23567522]
[1752510148514,0.70450283,119390.0,119380.0,0.20327522]
[1752510148974,0.70648283,119390.0,119380.0,0.11877811]
[1752510149205,0.56968283,119390.0,119380.0,0.11777811]
[1752510149419,0.70648283,119390.0,119380.0,0.12092811]
[1752510149638,0.54733996,119390.0,119380.0,0.12092811]
[1752510149879,0.71485817,119390.0,119380.0,0.12092811]
[1752510150117,0.71485817,119390.0,119380.0,0.76507522]
[1752510150118,0.1368,119390.0,119380.0,0.76507522]
[1752510150341,0.02683219,119400.0,119390.0,0.0653]
[1752510150567,0.13725115,119400.0,119390.0,0.18315994]
[1752510150782,0.14562586,119400.0,119390.0,0.16756522]
[1752510151004,0.1623757,119400.0,119390.0,0.16756522]
[1752510151234,0.72255296,119400.0,119390.0,0.10226522]
[1752510151444,0.71417811,119400.0,119390.0,0.60226522]
[1752510151871,0.59708359,119400.0,119390.0,0.60226522]
[1752510152085,0.73388359,119400.0,119390.0,0.59911522]
[1752510152778,0.33116312,119400.0,119390.0,0.59911522]
[1752510152991,0.6752107,119400.0,119390.0,0.60326522]
[1752510153633,0.6835859,119400.0,119390.0,0.60326522]
[1752510154755,0.6835859,119400.0,119390.0,0.10326522]
[1752510155002,0.6835859,119400.0,119390.0,0.60326522]
[1752510155456,0.6816059,119400.0,119390.0,0.60326522]
[1752510155691,0.6816059,119400.0,119390.0,0.6032536]
[1752510155916,0.5448059,119400.0,119390.0,0.6032536]
[1752510156144,0.6816059,119400.0,119390.0,0.6032536]
[1752510156370,0.6816059,119400.0,119390.0,0.60325327]
[1752510157052,0.57232304,119400.0,119390.0,0.60325327]
[1752510157530,0.57232304,119400.0,119390.0,0.60077327]
[1752510158040,0.73982722,119400.0,119390.0,0.60077327]
[1752510158255,0.42714742,119400.0,119390.0,0.60077327]
[1752510158466,0.15452548,119400.0,119390.0,0.66237327]
[1752510158678,0.17127504,119400.0,119390.0,0.16237327]
[1752510158882,0.34711435,119400.0,119390.0,0.16342714]
[1752510159091,0.73978736,119400.0,119390.0,0.16342714]
[1752510159301,0.59465244,119400.0,119390.0,0.13242714]
[1752510159507,0.33873985,119400.0,119390.0,0.16732714]
[1752510159721,0.33873985,119400.0,119390.0,0.16627327]
[1752510159933,0.73141244,119400.0,119390.0,0.16627327]
[1752510160145,0.0024,119410.0,119390.0,0.24652524]
[1752510160384,0.0024,119410.0,119400.0,0.06580361]
[1752510160583,0.0024,119410.0,119400.0,0.17944773]
[1752510160584,0.13916,119410.0,119400.0,0.17944773]
[1752510160803,0.15755312,119410.0,119400.0,0.17839412]
[1752510161013,0.15727492,119410.0,119400.0,0.17839412]
[1752510161224,0.0024,119410.0,119400.0,0.17839412]
[1752510161676,0.0024,119410.0,119400.0,0.31614004]
[1752510161855,0.0024,119410.0,119400.0,1.67038422]
[1752510162125,0.0024,119410.0,119400.0,1.36712004]
[1752510162355,0.0024,119410.0,119400.0,2.20032028]
[1752510162580,0.0024,119410.0,119400.0,1.89243963]
[1752510162802,0.0004,119420.0,119410.0,0.04654085]
[1752510163027,0.02552035,119420.0,119410.0,0.14563004]
[1752510163249,0.14553324,119420.0,119410.0,0.10223209]
[1752510163464,0.0004,119420.0,119410.0,0.10328508]
[1752510163682,0.13716,119420.0,119410.0,0.29681508]
[1752510163900,0.13716,119420.0,119410.0,0.32676209]
[1752510164106,0.52892054,119420.0,119410.0,0.32676209]
[1752510164313,0.7131442,119420.0,119410.0,0.13483209]
[1752510164524,0.7151242,119420.0,119410.0,0.09699306]
[1752510164742,0.70675075,119420.0,119410.0,0.09699306]
[1752510165193,0.70675075,119420.0,119410.0,0.09699363]
[1752510165400,0.77095075,119420.0,119410.0,0.01564652]
[1752510165840,0.77327075,119420.0,119410.0,0.01564652]
[1752510168214,1.49665812,119420.0,119410.0,0.01564652]
[1752510168420,1.57800523,119420.0,119410.0,0.01564652]
[1752510168628,1.57900523,119420.0,119410.0,0.01564652]
[1752510168832,1.19461786,119420.0,119410.0,0.01564652]
[1752510169285,0.00837534,119390.0,119380.0,0.00620326]
[1752510169495,0.71275246,119390.0,119380.0,0.10427794]
[1752510169705,0.69600142,119390.0,119380.0,0.10427794]
[1752510169912,0.69798142,119390.0,119380.0,0.01978083]
[1752510170118,0.69798142,119390.0,119380.0,0.01770123]
[1752510171395,0.69798142,119390.0,119380.0,0.11770123]
[1752510171609,0.69798142,119390.0,119380.0,0.28523347]
[1752510171857,0.40211841,119390.0,119380.0,0.28731347]
[1752510172060,0.71473275,119390.0,119380.0,0.28731347]
[1752510172716,0.71427032,119390.0,119380.0,0.28523347]
[1752510172920,0.20421042,119390.0,119380.0,0.28523347]
[1752510173127,0.34093042,119390.0,119380.0,0.28523347]
[1752510173341,0.34093042,119390.0,119380.0,0.26958339]
[1752510173552,0.75711779,119390.0,119380.0,0.11770497]
[1752510173754,0.78741779,119390.0,119380.0,0.11770497]
[1752510173986,0.78741779,119390.0,119380.0,0.28523809]
[1752510174604,0.42007872,119390.0,119380.0,0.28731809]
[1752510174826,0.43683005,119390.0,119380.0,0.29046809]
[1752510175043,0.18178741,119390.0,119380.0,0.29046809]
[1752510175245,0.7410689,119390.0,119380.0,0.29046809]
[1752510175462,0.01796067,119390.0,119380.0,0.3718152]
[1752510175700,0.33995021,119390.0,119380.0,0.3718152]
[1752510175902,0.70537691,119390.0,119380.0,0.3718152]
[1752510176111,0.40113827,119390.0,119380.0,0.3718152]
[1752510176357,0.1544709,119390.0,119380.0,0.4351152]
[1752510176584,0.02612667,119390.0,119380.0,0.4351152]
[1752510176849,0.16284667,119390.0,119380.0,0.4028152]
[1752510177057,0.1544709,119390.0,119380.0,0.4028152]
[1752510177272,0.1628466,119390.0,119380.0,0.4028152]
[1752510177489,0.17122237,119390.0,119380.0,0.3718152]
[1752510177918,0.17959828,119390.0,119380.0,0.3718152]
[1752510178141,0.1628466,119390.0,119380.0,0.3718152]
[1752510178360,0.00837534,119390.0,119380.0,0.3718152]
[1752510178580,0.19262979,119400.0,119390.0,0.16751821]
[1752510178796,0.32097522,119400.0,119390.0,0.18525291]
[1752510179011,0.32097522,119400.0,119390.0,0.18840291]
[1752510179223,0.5592676,119400.0,119390.0,0.18840291]
[1752510179473,0.6959876,119400.0,119390.0,0.18840291]
[1752510179684,0.72190903,119400.0,119390.0,0.0208847]
[1752510179893,0.72488903,119400.0,119390.0,0.0208847]
[1752510180053,0.72388903,119400.0,119390.0,0.0208847]
[1752510180259,0.72488903,119400.0,119390.0,0.0208847]
[1752510180486,0.72488903,119400.0,119390.0,0.0156547]
[1752510180663,0.79098903,119400.0,119390.0,0.0156547]
[1752510181072,1.1766964,119400.0,119390.0,0.0156547]
[1752510181277,0.57869398,119390.0,119380.0,0.10205115]
[1752510181487,1.10306135,119390.0,119380.0,0.11772025]
[1752510181917,1.10306135,119390.0,119380.0,0.11771539]
[1752510183388,0.96638135,119390.0,119380.0,0.11771539]
[1752510183589,0.96706135,119390.0,119380.0,0.11771539]
[1752510183802,0.94363705,119390.0,119380.0,0.28524763]
[1752510184424,0.93526135,119390.0,119380.0,0.11770394]
[1752510184854,1.07194135,119390.0,119380.0,0.11770394]
[1752510185066,1.07094135,119390.0,119380.0,0.21770394]
[1752510185474,0.93426135,119390.0,119380.0,0.21770394]
[1752510185886,1.07094135,119390.0,119380.0,0.21770394]
[1752510186322,1.10164135,119390.0,119380.0,0.21770202]
[1752510186529,1.10397135,119390.0,119380.0,0.21770202]
[1752510186984,1.10397135,119390.0,119380.0,0.51370202]
[1752510188478,1.10164135,119390.0,119380.0,0.68123426]
[1752510188682,1.10164135,119390.0,119380.0,0.51370202]
[1752510188683,1.10064135,119390.0,119380.0,0.51370202]
[1752510188903,0.96396135,119390.0,119380.0,0.51370202]
[1752510189036,1.06994135,119390.0,119380.0,0.68123426]
[1752510189262,1.03894135,119390.0,119380.0,0.68123426]
[1752510189479,0.003,119390.0,119380.0,0.68623426]
[1752510189695,0.003,119390.0,119380.0,0.84773452]
[1752510189696,0.13968,119390.0,119380.0,0.84773452]
[1752510189912,0.16480681,119390.0,119380.0,0.83098137]
[1752510190124,0.34070071,119390.0,119380.0,0.83098137]
[1752510190351,0.1701825,119390.0,119380.0,0.83097083]
[1752510190574,0.17218243,119390.0,119380.0,0.83097083]
[1752510190850,0.16380652,119390.0,119380.0,0.83097083]
[1752510191275,0.15543089,119390.0,119380.0,0.83097083]
[1752510191501,0.002,119390.0,119380.0,0.86447643]
[1752510191712,0.13864,119390.0,119380.0,0.86447643]
[1752510191953,0.01754743,119400.0,119390.0,0.25654509]
[1752510192224,0.13664,119400.0,119390.0,0.42424365]
[1752510192461,0.15496369,119400.0,119390.0,0.42424365]
[1752510193199,0.1633384,119400.0,119390.0,0.39185228]
[1752510193414,0.15496369,119400.0,119390.0,0.38467386]
[1752510193645,0.15496369,119400.0,119390.0,0.29563851]
[1752510193871,0.16333826,119400.0,119390.0,0.29563858]
[1752510194095,0.18008775,119400.0,119390.0,0.33451113]
[1752510194350,0.1968378,119400.0,119390.0,0.33451113]
[1752510194599,0.1968378,119400.0,119390.0,0.3428869]
[1752510194836,0.05182267,119400.0,119390.0,0.34288697]
[1752510195053,0.19683773,119400.0,119390.0,0.35963844]
[1752510195494,0.33921785,119400.0,119390.0,0.33451113]
[1752510195732,0.33921785,119400.0,119390.0,0.30151113]
[1752510195968,0.33084293,119400.0,119390.0,0.27051113]
[1752510196650,0.33084293,119400.0,119390.0,0.10299292]
[1752510196860,0.7162103,119400.0,119390.0,0.01664581]
[1752510197124,0.7162103,119400.0,119390.0,0.01867581]
[1752510197299,0.7162103,119400.0,119390.0,0.01664581]
[1752510197511,0.7786103,119400.0,119390.0,0.01664581]
[1752510198131,0.7786103,119400.0,119390.0,0.01564581]
[1752510198983,0.18582787,119400.0,119390.0,0.07071112]
[1752510199200,0.32238787,119400.0,119390.0,0.08637016]
[1752510199664,0.18782787,119400.0,119390.0,0.23077114]
[1752510199881,0.32438787,119400.0,119390.0,0.39723548]
[1752510200103,0.18782787,119400.0,119390.0,0.22971727]
[1752510200307,0.32438787,119400.0,119390.0,0.39723548]
[1752510200520,0.32438787,119400.0,119390.0,0.22971727]
[1752510200735,0.18782787,119400.0,119390.0,0.22971727]
[1752510200958,0.32438787,119400.0,119390.0,0.22971727]
[1752510201171,0.32238787,119400.0,119390.0,0.22971727]
[1752510201596,0.32238787,119400.0,119390.0,0.19831727]
[1752510202029,0.18582787,119400.0,119390.0,0.19832039]
[1752510202258,0.56921524,119400.0,119390.0,0.19832039]
[1752510202483,0.18582787,119400.0,119390.0,0.10200927]
[1752510202694,0.52034737,119420.0,119410.0,0.16749015]
[1752510202912,0.0004,119420.0,119410.0,0.26949942]
[1752510203127,0.0004,119420.0,119410.0,0.33169942]
[1752510203360,0.13696,119420.0,119410.0,0.33169942]
[1752510203593,0.5370942,119420.0,119410.0,0.26949942]
[1752510203806,0.40053413,119420.0,119410.0,0.26949942]
[1752510204025,0.52872054,119420.0,119410.0,0.27787392]
[1752510204238,0.54546751,119420.0,119410.0,0.28624835]
[1752510204454,0.53709392,119420.0,119410.0,0.29462271]
[1752510204675,0.15370655,119420.0,119410.0,0.29462271]
[1752510204882,0.55148226,119420.0,119410.0,0.29462271]
[1752510205101,0.55985578,119420.0,119410.0,0.302997]
[1752510205336,0.55985578,119420.0,119410.0,0.28624835]
[1752510205575,0.56822944,119420.0,119410.0,0.29462271]
[1752510205790,0.55985578,119420.0,119410.0,0.28624835]
[1752510206023,0.55981578,119420.0,119410.0,0.30299672]
[1752510206320,0.38338737,119420.0,119410.0,0.27787378]
[1752510206537,0.57796829,119430.0,119420.0,0.16747613]
[1752510206750,0.40411266,119430.0,119420.0,0.18516829]
[1752510206967,0.002,119430.0,119420.0,0.28623286]
[1752510207195,0.52190737,119430.0,119420.0,0.28623286]
[1752510207422,0.52190737,119430.0,119420.0,0.30297969]
[1752510207652,0.530331,119430.0,119420.0,0.30297969]
[1752510207868,0.52195853,119430.0,119420.0,0.30297313]
[1752510208086,0.38543853,119430.0,119420.0,0.30297313]
[1752510208316,0.00205116,119430.0,119420.0,0.4471251]
[1752510208806,0.00205116,119430.0,119420.0,1.1102821]
[1752510209036,0.00205116,119430.0,119420.0,0.9010291]
[1752510209273,0.00205116,119430.0,119420.0,0.6796881]
[1752510209498,0.00205116,119430.0,119420.0,0.65991037]
[1752510210189,0.002,119450.0,119440.0,0.19256445]
[1752510210401,0.15573386,119450.0,119440.0,0.29165716]
[1752510210607,0.01686422,119450.0,119440.0,0.29480716]
[1752510210832,0.00251158,119450.0,119440.0,0.4398362]
[1752510211490,0.00251158,119450.0,119440.0,1.2879222]
[1752510211709,0.00251158,119450.0,119440.0,1.0039112]
[1752510211922,0.00251158,119450.0,119440.0,0.7750472]
[1752510212142,0.00251158,119450.0,119440.0,0.29478423]
[1752510212389,0.00251158,119450.0,119440.0,0.43126423]
[1752510212809,0.00251158,119450.0,119440.0,0.43326423]
[1752510213950,0.01088265,119450.0,119440.0,0.43326423]
[1752510214195,0.01088265,119450.0,119440.0,0.48799232]
[1752510214196,0.00251158,119450.0,119440.0,0.48799232]
[1752510214407,0.01088265,119450.0,119440.0,0.49636423]
[1752510214634,0.01088265,119450.0,119440.0,0.51090508]
[1752510214635,0.00251158,119450.0,119440.0,0.51090508]
[1752510215276,0.00251158,119450.0,119440.0,0.5766162]
[1752510215705,0.00251158,119450.0,119440.0,2.1095612]
[1752510215926,0.00251158,119450.0,119440.0,2.48020757]
[1752510216140,0.00251158,119450.0,119440.0,2.0968202]
[1752510216350,0.00251158,119450.0,119440.0,2.55020757]
[1752510216564,0.00251158,119450.0,119440.0,2.15118753]
[1752510216775,0.00251158,119450.0,119440.0,2.03029612]
[1752510216988,0.00251158,119450.0,119440.0,1.37459412]
[1752510217200,0.00251158,119450.0,119440.0,1.37459551]
[1752510217419,0.00837044,119460.0,119450.0,0.20708918]
[1752510217667,0.00837044,119460.0,119450.0,0.33592627]
[1752510217846,0.21769717,119470.0,119460.0,0.17788091]
[1752510218056,0.20932729,119470.0,119460.0,0.28318879]
[1752510218269,0.04192109,119470.0,119460.0,0.29470944]
[1752510218477,0.04192032,119470.0,119460.0,0.30307995]
[1752510218914,0.20932685,119470.0,119460.0,0.28633879]
[1752510219121,0.20932685,119470.0,119460.0,0.30308002]
[1752510219336,0.04192081,119470.0,119460.0,0.30308002]
[1752510219542,0.21769715,119470.0,119460.0,0.28633879]
[1752510219758,0.20293704,119470.0,119460.0,0.10216923]
[1752510219975,0.20293704,119470.0,119460.0,0.09901923]
[1752510219976,0.33929704,119470.0,119460.0,0.09901923]
[1752510220403,0.34029704,119470.0,119460.0,0.28423187]
[1752510220616,0.16254049,119470.0,119460.0,0.29470179]
[1752510220837,0.01781047,119470.0,119460.0,0.5990723]
[1752510221054,0.01781047,119470.0,119460.0,0.66478342]
[1752510221055,0.02618028,119470.0,119460.0,0.66478342]
[1752510221558,0.21769673,119470.0,119460.0,0.65641284]
[1752510221781,0.03355023,119470.0,119460.0,0.66478335]
[1752510222197,0.02518028,119470.0,119460.0,0.66478335]
[1752510222424,0.03355016,119470.0,119460.0,0.66478335]
[1752510222637,0.21769659,119470.0,119460.0,0.64804219]
[1752510222849,0.05029055,119470.0,119460.0,0.66478349]
[1752510223075,0.05029048,119470.0,119460.0,0.66478349]
[1752510223277,0.03355016,119470.0,119460.0,0.673154]
[1752510223507,0.04192011,119470.0,119460.0,0.673154]
[1752510223738,0.0502902,119470.0,119460.0,0.704954]
[1752510223959,0.05866036,119470.0,119460.0,0.704954]
[1752510224199,0.02518042,119470.0,119460.0,0.40590928]
[1752510224435,0.02518042,119470.0,119460.0,0.7353923]
[1752510224436,0.01681047,119470.0,119460.0,0.7353923]
[1752510224652,0.01681047,119470.0,119460.0,1.16512052]
[1752510224876,0.00255338,119470.0,119460.0,4.43369652]
[1752510225103,0.0004,119480.0,119470.0,0.60905695]
[1752510225327,0.0004,119480.0,119470.0,3.59831855]
[1752510225535,0.0024,119490.0,119480.0,0.26904084]
[1752510225776,0.0024,119490.0,119480.0,1.33730138]
[1752510226852,0.0024,119490.0,119480.0,1.25859338]
[1752510227064,0.0024,119490.0,119480.0,1.14347338]
[1752510227276,0.0024,119490.0,119480.0,2.34729127]
[1752510227488,0.0024,119490.0,119480.0,1.40144938]
[1752510227715,0.0024,119490.0,119480.0,1.53768938]
[1752510228385,0.0024,119490.0,119480.0,1.69078787]
[1752510228591,0.00046,119500.0,119490.0,0.60802473]
[1752510228804,0.00054562,119500.0,119490.0,1.38560064]
[1752510229246,0.00054562,119500.0,119490.0,1.38587939]
[1752510229711,0.00054562,119500.0,119490.0,1.13873202]
[1752510229924,0.20120209,119520.0,119510.0,0.19245181]
[1752510230134,0.02549935,119520.0,119510.0,0.43606136]
[1752510230350,0.01173269,119520.0,119510.0,0.43948958]
[1752510230577,0.18941585,119520.0,119510.0,0.27290363]
[1752510230796,0.2517494,119520.0,119510.0,0.18318902]
[1752510231010,0.63745677,119520.0,119510.0,0.19155652]
[1752510231222,0.2517494,119520.0,119510.0,0.20829096]
[1752510231439,0.2537494,119520.0,119510.0,0.50429096]
[1752510231656,0.08641339,119520.0,119510.0,0.50429096]
[1752510231877,0.08066107,119520.0,119510.0,0.49592381]
[1752510232079,0.05964054,119520.0,119510.0,0.51265804]
[1752510232305,0.06800678,119520.0,119510.0,0.51265432]
[1752510232517,0.26305746,119520.0,119510.0,0.51265439]
[1752510232728,0.08474003,119520.0,119510.0,0.5210214]
[1752510232940,0.0706214,119520.0,119510.0,0.5210214]
[1752510233164,0.06800678,119520.0,119510.0,0.5210214]
[1752510233383,0.06800678,119520.0,119510.0,0.4731114]
[1752510233628,0.24370945,119520.0,119510.0,0.44592023]
[1752510233855,0.26834321,119520.0,119510.0,0.31155658]
[1752510234092,0.01629409,119520.0,119510.0,0.65315648]
[1752510234351,0.01629409,119520.0,119510.0,0.65630648]
[1752510234574,0.01629409,119520.0,119510.0,0.65630298]
[1752510234986,0.06686342,119530.0,119520.0,0.19243557]
[1752510235203,0.24714593,119530.0,119520.0,0.2893359]
[1752510235397,0.02111143,119530.0,119520.0,0.44742859]
[1752510235610,0.03011179,119530.0,119520.0,0.44742859]
[1752510235826,0.01338001,119530.0,119520.0,0.44742859]
[1752510236043,0.00248561,119530.0,119520.0,0.90905681]
[1752510236259,0.01137803,119550.0,119530.0,0.17568762]
[1752510236475,0.0004,119550.0,119540.0,0.91196048]
[1752510236691,0.0004,119550.0,119540.0,0.71111048]
[1752510236921,0.0004,119550.0,119540.0,2.0059137]
[1752510237165,0.0004,119550.0,119540.0,1.5609187]
[1752510237397,0.0004,119550.0,119540.0,1.7609187]
[1752510237624,0.0004,119550.0,119540.0,4.1644947]
[1752510237835,0.0004,119550.0,119540.0,4.6592947]
[1752510238078,0.0024,119570.0,119560.0,0.19237118]
[1752510238322,0.00291106,119570.0,119560.0,3.79516195]
[1752510238553,0.00191106,119610.0,119600.0,0.19230684]
[1752510238764,0.010271,119610.0,119600.0,0.40137324]
[1752510238973,0.00206437,119610.0,119600.0,0.44581772]
[1752510239185,0.02507625,119630.0,119620.0,0.16718402]
[1752510239402,0.01671757,119630.0,119620.0,0.40130262]
[1752510239625,0.19225874,119630.0,119620.0,0.27362214]
[1752510239831,0.18390006,119630.0,119620.0,0.25690303]
[1752510240041,0.22230994,119640.0,119630.0,0.18389999]
[1752510240249,0.0004,119640.0,119630.0,0.4180046]
[1752510240458,0.0004,119640.0,119630.0,1.21032309]
[1752510240669,0.0004,119640.0,119630.0,1.25596394]
[1752510240898,0.0004,119640.0,119630.0,2.77528657]
[1752510241112,0.002,119650.0,119640.0,0.20678338]
[1752510241317,0.0021532,119650.0,119640.0,0.26725505]
[1752510241574,0.19437933,119650.0,119640.0,0.24126528]
[1752510241836,0.64994893,119650.0,119640.0,0.01551977]
[1752510242309,0.26656156,119650.0,119640.0,0.01551977]
[1752510242934,0.64994893,119650.0,119640.0,0.01551977]
[1752510243143,0.64990893,119650.0,119640.0,0.01551977]
[1752510243355,0.26652156,119650.0,119640.0,0.01551977]
[1752510243573,0.64990893,119650.0,119640.0,0.01551977]
[1752510244234,0.26652156,119650.0,119640.0,0.01551977]
[1752510244455,0.19989156,119650.0,119640.0,0.01551977]
[1752510244705,0.0021132,119650.0,119640.0,0.67571678]
[1752510244938,0.0021132,119650.0,119640.0,1.91287663]